[Event "12ème open de Salon"]
[Site "Salon de Provence, France"]
[Date "2022.07.12"]
[Round "5.4"]
[White "Tramarin, Matteo"]
[Black "Jullien, Patrick"]
[Result "1-0"]
[TimeControl "1 h 30 min + 30 s"]
[WhiteElo "1501"]
[BlackElo "1548"]

1. c4 {[%clk 01:30:51]} {[%emt 00:00:09]} Nf6 {[%clk 01:29:10]} {[%emt
00:01:50]} 2. Nc3 {[%clk 01:30:28]} {[%emt 00:00:53]} g6 {[%clk 01:25:16]}
{[%emt 00:04:25]} 3. g3 {[%clk 01:30:01]} {[%emt 00:00:58]} Bg7 {[%clk
01:24:33]} {[%emt 00:01:13]} 4. Bg2 {[%clk 01:30:00]} {[%emt 00:00:30]} O-O
{[%clk 01:23:32]} {[%emt 00:01:31]} 5. Nf3 {[%clk 01:30:00]} {[%emt 00:00:30]}
c6 {[%clk 01:15:06]} {[%emt 00:08:57]} 6. d4 {[%clk 01:25:00]} {[%emt
00:05:30]} d5 {[%clk 01:14:17]} {[%emt 00:01:18]} 7. cxd5 {[%clk 01:23:49]}
{[%emt 00:01:42]} Nxd5 {[%clk 01:12:10]} {[%emt 00:02:36]} 8. h4 {[%clk
01:19:04]} {[%emt 00:05:16]} Bg4 {[%clk 01:01:53]} {[%emt 00:10:47]} 9. Ne5
{[%clk 01:11:37]} {[%emt 00:07:57]} Nxc3 {[%clk 00:56:44]} {[%emt 00:05:39]} 10.
bxc3 {[%clk 01:10:53]} {[%emt 00:01:14]} Bxe5 {[%clk 00:56:36]} {[%emt
00:00:38]} 11. dxe5 {[%clk 01:10:52]} {[%emt 00:00:31]} Qxd1+ {[%clk 00:56:57]}
{[%emt 00:00:09]} 12. Kxd1 {[%clk 01:11:15]} {[%emt 00:00:06]} Nd7 {[%clk
00:51:43]} {[%emt 00:05:45]} 13. Bf4 {[%clk 01:08:43]} {[%emt 00:03:03]} Rfd8
{[%clk 00:48:03]} {[%emt 00:04:09]} 14. Ke1 {[%clk 01:08:40]} {[%emt 00:00:34]}
Nb6 {[%clk 00:43:52]} {[%emt 00:04:40]} 15. f3 {[%clk 01:07:31]} {[%emt
00:01:40]} Be6 {[%clk 00:42:54]} {[%emt 00:01:26]} 16. h5 {[%clk 01:07:26]}
{[%emt 00:00:36]} Nd5 {[%clk 00:39:29]} {[%emt 00:03:53]} 17. hxg6 {[%clk
01:06:44]} {[%emt 00:01:14]} Nxf4 {[%clk 00:38:50]} {[%emt 00:01:09]} 18. gxf7+
{[%clk 01:05:50]} {[%emt 00:01:24]} Bxf7 {[%clk 00:38:36]} {[%emt 00:00:43]} 19.
gxf4 {[%clk 01:06:09]} {[%emt 00:00:11]} Bg6 {[%clk 00:36:33]} {[%emt
00:02:34]} 20. Bh3 {[%clk 01:06:06]} {[%emt 00:00:33]} Bc2 {[%clk 00:36:08]}
{[%emt 00:00:54]} 21. Be6+ {[%clk 01:06:00]} {[%emt 00:00:37]} Kg7 {[%clk
00:34:47]} {[%emt 00:01:51]} 22. Kf2 {[%clk 01:05:20]} {[%emt 00:01:11]} Rf8
{[%clk 00:34:40]} {[%emt 00:00:36]} 23. Rag1+ {[%clk 01:05:06]} {[%emt
00:00:44]} Kh8 {[%clk 00:34:51]} {[%emt 00:00:19]} 24. Rh4 {[%clk 01:05:21]}
{[%emt 00:00:15]} Bf5 {[%clk 00:32:57]} {[%emt 00:02:24]} 25. Bb3 {[%clk
01:04:11]} {[%emt 00:01:39]} Rad8 {[%clk 00:32:00]} {[%emt 00:01:28]} 26. e4
{[%clk 01:03:32]} {[%emt 00:01:09]} Bc8 {[%emt 00:02:30]} 27. Rgh1 {[%emt
00:01:18]} e6 {[%clk 00:25:06]} {[%emt 00:03:36]} 28. Rxh7+ {[%clk 01:03:15]}
{[%emt 00:00:47]} Kg8 {[%clk 00:25:26]} {[%emt 00:00:11]} 29. f5 {[%clk
01:03:25]} {[%emt 00:00:20]} Rde8 {[%clk 00:23:19]} {[%emt 00:02:36]} 30. Rh8+
{[%clk 01:03:12]} {[%emt 00:00:44]} Kg7 {[%clk 00:23:27]} {[%emt 00:00:22]} 31.
R1h7# {[%clk 01:03:32]} {[%emt 00:00:09]} 1-0

[Event "12ème open de Salon"]
[Site "Salon de Provence, France"]
[Date "2022.07.12"]
[Round "5.5"]
[White "Lauret, Patrick"]
[Black "Piquemal, Maxence"]
[Result "0-1"]
[TimeControl "1 h 30 min + 30 s"]
[WhiteElo "1670"]
[BlackElo "1668"]

1. e4 {[%clk 01:30:57]} {[%emt 00:00:03]} d5 {[%clk 01:30:55]} {[%emt
00:00:05]} 2. Nc3 {[%clk 01:31:21]} {[%emt 00:00:07]} d4 {[%clk 01:30:21]}
{[%emt 00:01:04]} 3. Nce2 {[%clk 01:31:49]} {[%emt 00:00:02]} e5 {[%clk
01:29:45]} {[%emt 00:01:06]} 4. f4 {[%clk 01:32:16]} {[%emt 00:00:02]} Nc6
{[%clk 01:26:19]} {[%emt 00:03:57]} 5. Nf3 {[%clk 01:32:17]} {[%emt 00:00:29]}
Bd6 {[%clk 01:22:42]} {[%emt 00:04:07]} 6. fxe5 {[%clk 01:32:36]} {[%emt
00:00:12]} Bxe5 {[%clk 01:22:53]} {[%emt 00:00:18]} 7. Ng3 {[%clk 01:30:52]}
{[%emt 00:02:13]} Bg4 {[%clk 01:17:12]} {[%emt 00:06:12]} 8. Be2 {[%clk
01:28:59]} {[%emt 00:02:22]} Bxf3 {[%clk 01:13:44]} {[%emt 00:03:58]} 9. Bxf3
{[%clk 01:27:07]} {[%emt 00:02:23]} Qh4 {[%clk 01:08:56]} {[%emt 00:05:18]} 10.
Kf2 {[%clk 01:27:18]} {[%emt 00:00:19]} d3 {[%clk 01:02:42]} {[%emt 00:06:44]}
11. cxd3 {[%clk 01:24:37]} {[%emt 00:03:11]} O-O-O {[%clk 00:58:54]} {[%emt
00:04:18]} 12. Bg4+ {[%clk 01:10:34]} {[%emt 00:14:33]} Kb8 {[%clk 00:58:35]}
{[%emt 00:00:49]} 13. Bh3 {[%clk 01:09:53]} {[%emt 00:01:12]} Nh6 {[%clk
00:50:19]} {[%emt 00:08:46]} 14. d4 {[%clk 01:05:58]} {[%emt 00:04:25]} Bxg3+
{[%clk 00:37:42]} {[%emt 00:13:07]} 15. hxg3 {[%clk 01:06:26]} {[%emt
00:00:02]} Qxe4 {[%clk 00:37:54]} {[%emt 00:00:18]} 16. d3 {[%clk 01:04:35]}
{[%emt 00:02:21]} Qxd4+ {[%clk 00:38:00]} {[%emt 00:00:23]} 17. Kf1 {[%clk
01:02:35]} {[%emt 00:02:30]} Ne5 {[%clk 00:24:35]} {[%emt 00:13:55]} 18. Bxh6
{[%clk 01:02:06]} {[%emt 00:01:00]} gxh6 {[%clk 00:22:59]} {[%emt 00:02:07]} 19.
Bf5 {[%clk 01:00:45]} {[%emt 00:01:51]} Nxd3 {[%clk 00:13:16]} {[%emt
00:10:12]} 20. Bxd3 {[%clk 00:55:41]} {[%emt 00:05:35]} Qxd3+ {[%clk 00:13:44]}
{[%emt 00:00:03]} 21. Qxd3 {[%clk 00:55:35]} {[%emt 00:00:35]} Rxd3 {[%clk
00:14:13]} 22. Rxh6 {[%clk 00:55:23]} {[%emt 00:00:42]} Rxg3 {[%clk 00:10:37]}
{[%emt 00:04:06]} 23. Kf2 {[%clk 00:55:41]} {[%emt 00:00:11]} Rhg8 {[%clk
00:08:22]} {[%emt 00:02:46]} 24. Rxh7 {[%clk 00:54:49]} {[%emt 00:01:22]} Rxg2+
{[%clk 00:08:44]} {[%emt 00:00:07]} 25. Kf3 {[%clk 00:53:57]} {[%emt 00:01:22]}
Rxb2 {[%clk 00:08:13]} {[%emt 00:01:01]} 26. Rxf7 {[%clk 00:53:41]} {[%emt
00:00:46]} b6 {[%clk 00:07:40]} {[%emt 00:01:03]} 27. Rc1 {[%clk 00:51:56]}
{[%emt 00:02:15]} Rc8 {[%clk 00:07:19]} {[%emt 00:00:51]} 28. Ra1 {[%clk
00:48:55]} {[%emt 00:03:31]} Rc2 {[%clk 00:06:39]} {[%emt 00:01:10]} 29. a4
{[%clk 00:49:00]} {[%emt 00:00:25]} a5 {[%clk 00:06:52]} {[%emt 00:00:17]} 30.
Ra3 {[%clk 00:48:37]} {[%emt 00:00:52]} Rd8 {[%clk 00:06:29]} {[%emt 00:00:53]}
31. Re7 {[%emt 00:04:14]} Rc4 {[%clk 00:04:56]} 32. Re4 {[%clk 00:45:59]}
{[%emt 00:01:27]} Rxe4 {[%clk 00:04:56]} {[%emt 00:00:30]} 33. Kxe4 {[%clk
00:46:28]} {[%emt 00:00:01]} Kb7 {[%clk 00:04:57]} {[%emt 00:00:28]} 34. Rg3
{[%clk 00:46:22]} {[%emt 00:00:37]} Rd1 {[%clk 00:04:36]} {[%emt 00:00:50]} 35.
Ra3 {[%clk 00:46:26]} {[%emt 00:00:26]} c5 {[%clk 00:04:02]} {[%emt 00:01:04]}
36. Ke5 {[%clk 00:45:54]} {[%emt 00:01:02]} Rd4 {[%clk 00:03:56]} {[%emt
00:00:37]} 37. Ke6 {[%clk 00:46:02]} {[%emt 00:00:22]} Kc6 {[%clk 00:04:07]}
{[%emt 00:00:19]} 38. Ke5 {[%clk 00:46:30]} {[%emt 00:00:02]} Rb4 {[%clk
00:04:24]} {[%emt 00:00:12]} 39. Ra1 {[%clk 00:46:10]} {[%emt 00:00:50]} b5
{[%clk 00:03:46]} {[%emt 00:01:08]} 40. axb5+ {[%clk 00:46:38]} {[%emt
00:00:02]} Kxb5 {[%clk 00:04:15]} {[%emt 00:00:01]} 41. Kd5 {[%clk 00:46:34]}
{[%emt 00:00:35]} Rd4 {[%clk 00:04:03]} {[%emt 00:00:42]} 42. Ke5 {[%clk
00:46:37]} {[%emt 00:00:27]} a4 {[%clk 00:04:13]} {[%emt 00:00:19]} 43. Rb1+
{[%clk 00:46:36]} {[%emt 00:00:30]} Rb4 {[%clk 00:04:33]} {[%emt 00:00:10]} 44.
Rh1 {[%clk 00:46:16]} {[%emt 00:00:51]} a3 {[%clk 00:04:09]} {[%emt 00:00:55]}
45. Rh8 {[%clk 00:46:28]} {[%emt 00:00:18]} a2 {[%clk 00:03:36]} {[%emt
00:01:03]} 46. Kd5 {[%clk 00:44:36]} {[%emt 00:02:22]} Rd4 {[%clk 00:03:36]}
{[%emt 00:00:30]} 0-1

[Event "12ème open de Salon"]
[Site "Salon de Provence, France"]
[Date "2022.07.12"]
[Round "5.6"]
[White "Roganova, Maxime"]
[Black "Chabaud, Philippe"]
[Result "1-0"]
[TimeControl "1 h 30 min + 30 s"]
[WhiteElo "1471"]
[BlackElo "1481"]

1. e4 {[%clk 01:30:57]} {[%emt 00:00:02]} e6 {[%clk 01:30:52]} {[%emt
00:00:08]} 2. d4 {[%clk 01:31:21]} {[%emt 00:00:07]} d5 {[%clk 01:31:14]}
{[%emt 00:00:08]} 3. Bd3 {[%clk 01:31:46]} {[%emt 00:00:04]} Nc6 {[%clk
01:29:59]} {[%emt 00:01:44]} 4. Ne2 {[%clk 01:27:38]} {[%emt 00:04:38]} Bd7
{[%clk 01:25:53]} {[%emt 00:04:37]} 5. c3 {[%clk 01:26:25]} {[%emt 00:01:44]}
dxe4 {[%clk 01:24:13]} {[%emt 00:02:08]} 6. Bxe4 {[%clk 01:26:11]} {[%emt
00:00:45]} Nf6 {[%clk 01:24:25]} {[%emt 00:00:18]} 7. Bf3 {[%clk 01:26:30]}
{[%emt 00:00:11]} Be7 {[%clk 01:23:29]} {[%emt 00:01:26]} 8. Bf4 {[%clk
01:23:51]} {[%emt 00:03:08]} O-O {[%clk 01:21:35]} {[%emt 00:02:25]} 9. O-O
{[%clk 01:23:30]} {[%emt 00:00:50]} Nd5 {[%clk 01:19:45]} {[%emt 00:02:19]} 10.
Bg3 {[%clk 01:23:30]} {[%emt 00:00:31]} Bh4 {[%clk 01:18:55]} {[%emt 00:01:20]}
11. Nd2 {[%clk 01:20:41]} {[%emt 00:03:20]} Bxg3 {[%clk 01:19:03]} {[%emt
00:00:22]} 12. Nxg3 {[%clk 01:19:29]} {[%emt 00:01:43]} Re8 {[%clk 01:16:57]}
{[%emt 00:02:36]} 13. Re1 {[%clk 01:18:33]} {[%emt 00:01:25]} Rb8 {[%clk
01:13:25]} {[%emt 00:04:02]} 14. Qc2 {[%clk 01:14:03]} {[%emt 00:05:00]} Nce7
{[%clk 01:10:17]} {[%emt 00:03:38]} 15. Nge4 {[%clk 01:10:12]} {[%emt
00:04:21]} h6 {[%clk 01:06:48]} {[%emt 00:03:59]} 16. Nc5 {[%clk 01:08:09]}
{[%emt 00:02:33]} Bc6 {[%clk 01:03:16]} {[%emt 00:04:01]} 17. Nd3 {[%clk
01:06:27]} {[%emt 00:02:11]} Nf6 {[%clk 01:03:00]} {[%emt 00:00:46]} 18. Rad1
{[%clk 01:05:18]} {[%emt 00:01:39]} Bxf3 {[%clk 01:02:53]} {[%emt 00:00:38]} 19.
Nxf3 {[%clk 01:05:37]} {[%emt 00:00:11]} Ng6 {[%clk 00:58:53]} {[%emt
00:04:29]} 20. Nde5 {[%clk 01:05:06]} {[%emt 00:01:03]} Nf8 {[%clk 00:58:09]}
{[%emt 00:01:14]} 21. Rd2 {[%clk 00:57:40]} {[%emt 00:07:56]} c6 {[%clk
00:58:16]} {[%emt 00:00:23]} 22. h3 {[%clk 00:52:02]} {[%emt 00:06:09]} Qc7
{[%clk 00:57:50]} {[%emt 00:00:54]} 23. Red1 {[%clk 00:48:16]} {[%emt
00:04:17]} Red8 {[%clk 00:56:17]} {[%emt 00:02:01]} 24. g4 {[%clk 00:44:33]}
{[%emt 00:04:15]} N6h7 {[%clk 00:51:51]} {[%emt 00:04:56]} 25. Qe4 {[%clk
00:40:04]} {[%emt 00:04:58]} Qe7 {[%clk 00:43:58]} {[%emt 00:08:21]} 26. Kh1
{[%clk 00:37:59]} {[%emt 00:02:37]} Ng5 {[%clk 00:43:09]} {[%emt 00:01:19]} 27.
Nxg5 {[%clk 00:37:14]} {[%emt 00:01:16]} Qxg5 {[%clk 00:43:23]} {[%emt
00:00:15]} 28. f4 {[%clk 00:37:27]} {[%emt 00:00:17]} Qe7 {[%clk 00:42:04]}
{[%emt 00:01:48]} 29. Rg2 {[%clk 00:36:19]} {[%emt 00:01:39]} c5 {[%clk
00:40:37]} {[%emt 00:01:56]} 30. Rgd2 {[%clk 00:32:36]} {[%emt 00:04:15]} Nh7
{[%clk 00:36:29]} {[%emt 00:04:38]} 31. dxc5 {[%clk 00:31:19]} {[%emt
00:01:47]} Rxd2 {[%clk 00:34:58]} {[%emt 00:02:00]} 32. Rxd2 {[%clk 00:30:40]}
{[%emt 00:01:10]} Nf6 {[%clk 00:33:45]} {[%emt 00:01:43]} 33. Qe3 {[%clk
00:30:25]} {[%emt 00:00:45]} Nd5 {[%clk 00:33:55]} {[%emt 00:00:19]} 34. Qd4
{[%clk 00:30:14]} {[%emt 00:00:41]} Qh4 {[%clk 00:32:07]} {[%emt 00:02:19]} 35.
Kg2 {[%clk 00:30:07]} {[%emt 00:00:37]} h5 {[%clk 00:25:27]} {[%emt 00:07:10]}
36. c4 {[%clk 00:28:01]} {[%emt 00:02:35]} hxg4 {[%clk 00:20:48]} {[%emt
00:05:09]} 37. cxd5 {[%clk 00:27:42]} {[%emt 00:00:48]} Qxh3+ {[%clk 00:20:52]}
{[%emt 00:00:26]} 38. Kg1 {[%clk 00:27:32]} {[%emt 00:00:40]} Qg3+ {[%clk
00:20:58]} {[%emt 00:00:24]} 39. Kf1 {[%clk 00:27:11]} {[%emt 00:00:52]} Qh3+
{[%clk 00:21:09]} {[%emt 00:00:18]} 40. Ke2 {[%clk 00:26:50]} {[%emt 00:00:51]}
exd5 {[%clk 00:17:40]} {[%emt 00:04:00]} 41. Qxd5 {[%clk 00:26:35]} {[%emt
00:00:44]} Qh2+ {[%clk 00:17:48]} {[%emt 00:00:23]} 42. Ke3 {[%clk 00:26:32]}
{[%emt 00:00:34]} Qg1+ {[%clk 00:17:20]} {[%emt 00:00:57]} 43. Kd3 {[%clk
00:22:41]} {[%emt 00:04:21]} Qf1+ {[%clk 00:16:52]} {[%emt 00:00:56]} 44. Kc2
{[%clk 00:23:03]} {[%emt 00:00:10]} Qxf4 {[%clk 00:16:15]} {[%emt 00:01:07]} 45.
Nd3 {[%clk 00:22:49]} {[%emt 00:00:44]} Qa4+ {[%clk 00:14:16]} {[%emt
00:02:29]} 46. Kc3 {[%clk 00:21:29]} {[%emt 00:01:50]} Qa5+ {[%clk 00:12:51]}
{[%emt 00:01:54]} 47. b4 {[%clk 00:21:48]} {[%emt 00:00:12]} Qc7 {[%clk
00:10:12]} {[%emt 00:03:07]} 48. Qd6 {[%clk 00:20:28]} {[%emt 00:01:52]} Qc8
{[%clk 00:07:08]} {[%emt 00:03:34]} 49. Ne5 {[%clk 00:19:35]} {[%emt 00:01:24]}
g3 {[%clk 00:04:40]} {[%emt 00:02:57]} 50. Nd7 {[%clk 00:19:04]} {[%emt
00:01:02]} Ra8 {[%clk 00:02:27]} {[%emt 00:02:43]} 51. Qxg3 {[%clk 00:19:16]}
{[%emt 00:00:17]} b6 {[%clk 00:02:05]} {[%emt 00:00:51]} 52. Nf6+ {[%clk
00:19:38]} {[%emt 00:00:09]} Kf8 {[%clk 00:02:10]} {[%emt 00:00:25]} 53. Qd6#
{[%clk 00:19:59]} {[%emt 00:00:09]} 1-0

[Event "12ème open de Salon"]
[Site "Salon de Provence, France"]
[Date "2022.07.12"]
[Round "5.8"]
[White "Boudet, Nicole"]
[Black "Roganova, Jeremy"]
[Result "0-1"]
[TimeControl "1 h 30 min + 30 s"]
[WhiteElo "1072"]
[BlackElo "1191"]

1. e4 {[%clk 01:30:57]} {[%emt 00:00:02]} c5 {[%clk 01:30:56]} {[%emt
00:00:05]} 2. Nc3 {[%clk 01:31:10]} {[%emt 00:00:16]} d6 {[%clk 01:31:20]}
{[%emt 00:00:06]} 3. Nf3 {[%clk 01:31:03]} {[%emt 00:00:37]} Nf6 {[%clk
01:31:40]} {[%emt 00:00:10]} 4. Bb5+ {[%clk 01:30:18]} {[%emt 00:01:15]} Nbd7
{[%clk 01:31:49]} {[%emt 00:00:21]} 5. O-O {[%clk 01:29:18]} {[%emt 00:01:30]}
a6 {[%clk 01:32:15]} {[%emt 00:00:04]} 6. Bxd7+ {[%clk 01:28:13]} {[%emt
00:01:36]} Bxd7 {[%clk 01:32:33]} {[%emt 00:00:11]} 7. h3 {[%clk 01:27:01]}
{[%emt 00:01:43]} e6 {[%clk 01:32:43]} {[%emt 00:00:19]} 8. e5 {[%clk
01:26:48]} {[%emt 00:00:44]} dxe5 {[%clk 01:32:25]} {[%emt 00:00:48]} 9. Nxe5
{[%clk 01:27:06]} {[%emt 00:00:13]} Be7 {[%clk 01:32:31]} {[%emt 00:00:23]} 10.
Nxd7 {[%clk 01:27:05]} {[%emt 00:00:31]} Nxd7 {[%clk 01:32:51]} {[%emt
00:00:10]} 11. d3 {[%clk 01:23:19]} {[%emt 00:04:17]} O-O {[%clk 01:31:55]}
{[%emt 00:01:26]} 12. Qg4 {[%clk 01:23:04]} {[%emt 00:00:45]} Kh8 {[%clk
01:30:26]} {[%emt 00:01:58]} 13. Ne4 {[%clk 01:20:29]} {[%emt 00:03:05]} f5
{[%clk 01:29:55]} {[%emt 00:01:01]} 14. Qf3 {[%clk 01:15:06]} {[%emt 00:05:53]}
fxe4 {[%clk 01:30:13]} {[%emt 00:00:12]} 15. Qxe4 {[%clk 01:14:09]} {[%emt
00:00:09]} Nf6 {[%clk 01:29:25]} {[%emt 00:02:36]} 16. Qc4 {[%clk 01:13:34]}
{[%emt 00:01:05]} Qd5 {[%clk 01:28:54]} {[%emt 00:01:01]} 17. Qc3 {[%clk
01:12:23]} {[%emt 00:01:42]} Nh5 {[%clk 01:28:27]} {[%emt 00:00:57]} 18. b3
{[%clk 01:10:03]} {[%emt 00:02:50]} Nf4 {[%clk 01:27:47]} {[%emt 00:01:10]} 19.
Re1 {[%clk 01:04:37]} {[%emt 00:05:56]} Qxg2# {[%clk 01:27:32]} {[%emt
00:00:14]} 0-1

[Event "12ème open de Salon"]
[Site "Salon de Provence, France"]
[Date "2022.07.12"]
[Round "6.1"]
[White "Lalic, Bogdan"]
[Black "Charvein, Gabriel"]
[Result "1-0"]
[TimeControl "1 h 30 min + 30 s"]
[WhiteElo "2412"]
[BlackElo "2078"]

1. d4 {[%clk 01:30:58]} {[%emt 00:00:02]} e6 {[%clk 01:30:56]} {[%emt
00:00:05]} 2. c4 {[%clk 01:31:00]} {[%emt 00:00:28]} d5 {[%clk 01:31:22]}
{[%emt 00:00:04]} 3. Nf3 {[%clk 01:30:42]} {[%emt 00:00:47]} Nf6 {[%clk
01:31:45]} {[%emt 00:00:07]} 4. g3 {[%clk 01:30:46]} {[%emt 00:00:26]} Bb4+
{[%clk 01:31:47]} {[%emt 00:00:28]} 5. Bd2 {[%clk 01:30:58]} {[%emt 00:00:18]}
a5 {[%clk 01:31:56]} {[%emt 00:00:21]} 6. Bg2 {[%clk 01:30:41]} {[%emt
00:00:48]} O-O {[%clk 01:31:58]} {[%emt 00:00:29]} 7. Qc2 {[%clk 01:29:12]}
{[%emt 00:01:59]} Nbd7 {[%clk 01:31:28]} {[%emt 00:01:00]} 8. O-O {[%clk
01:29:29]} {[%emt 00:00:13]} c6 {[%clk 01:28:04]} {[%emt 00:03:53]} 9. Bf4
{[%clk 01:28:29]} {[%emt 00:01:29]} Be7 {[%clk 01:19:53]} {[%emt 00:08:41]} 10.
Rd1 {[%clk 01:25:50]} {[%emt 00:03:09]} Ne4 {[%clk 01:18:45]} {[%emt 00:01:38]}
11. Nc3 {[%clk 01:24:14]} {[%emt 00:02:05]} f5 {[%clk 01:16:51]} {[%emt
00:02:25]} 12. Nxe4 {[%clk 01:20:30]} {[%emt 00:04:14]} fxe4 {[%clk 01:14:49]}
{[%emt 00:02:32]} 13. Ne5 {[%clk 01:20:54]} {[%emt 00:00:06]} Nxe5 {[%clk
01:06:36]} {[%emt 00:08:43]} 14. Bxe5 {[%clk 01:21:15]} {[%emt 00:00:10]} Bf6
{[%clk 01:05:18]} {[%emt 00:01:48]} 15. Bf4 {[%clk 01:20:50]} {[%emt 00:00:53]}
Bg5 {[%clk 01:04:57]} {[%emt 00:00:52]} 16. Bxg5 {[%clk 01:20:39]} {[%emt
00:00:41]} Qxg5 {[%clk 01:05:21]} {[%emt 00:00:06]} 17. Qc1 {[%clk 01:20:24]}
{[%emt 00:00:43]} Qh5 {[%clk 00:51:14]} {[%emt 00:14:39]} 18. Qe3 {[%clk
01:20:39]} {[%emt 00:00:14]} e5 {[%clk 00:50:27]} {[%emt 00:01:18]} 19. cxd5
{[%clk 01:20:27]} {[%emt 00:00:41]} cxd5 {[%clk 00:48:10]} {[%emt 00:02:47]} 20.
f3 {[%clk 01:20:01]} {[%emt 00:00:56]} Bh3 {[%emt 00:01:09]} 21. Bxh3 {[%clk
01:15:29]} {[%emt 00:05:01]} Qxh3 {[%clk 00:47:57]} {[%emt 00:00:06]} 22. dxe5
{[%clk 01:15:22]} {[%emt 00:00:37]} Ra6 {[%clk 00:29:33]} {[%emt 00:18:54]} 23.
Rxd5 {[%clk 01:11:33]} {[%emt 00:04:19]} Rh6 {[%clk 00:29:36]} {[%emt
00:00:27]} 24. Qf2 {[%clk 01:11:56]} {[%emt 00:00:06]} e3 {[%clk 00:28:44]}
{[%emt 00:01:23]} 25. Qg2 {[%clk 01:12:22]} {[%emt 00:00:04]} Qe6 {[%clk
00:29:06]} {[%emt 00:00:08]} 26. f4 {[%clk 01:07:54]} {[%emt 00:04:59]} Qb6
{[%clk 00:29:10]} {[%emt 00:00:25]} 27. Rad1 {[%clk 01:06:31]} {[%emt
00:01:52]} Qxb2 {[%clk 00:25:29]} {[%emt 00:04:12]} 28. Rd8 {[%clk 00:57:04]}
{[%emt 00:09:57]} Qxa2 {[%clk 00:18:01]} {[%emt 00:07:58]} 29. Qxb7 {[%clk
00:54:36]} {[%emt 00:02:58]} 1-0

[Event "12ème open de Salon"]
[Site "Salon de Provence, France"]
[Date "2022.07.12"]
[Round "6.2"]
[White "Mounier, Victor"]
[Black "Chaumet, Etienne"]
[Result "1-0"]
[TimeControl "1 h 30 min + 30 s"]
[WhiteElo "1888"]
[BlackElo "1809"]

1. d4 {[%clk 01:30:57]} {[%emt 00:00:03]} Nf6 {[%clk 01:30:53]} {[%emt
00:00:06]} 2. c4 {[%clk 01:31:12]} {[%emt 00:00:16]} e6 {[%clk 01:31:13]}
{[%emt 00:00:10]} 3. Nc3 {[%clk 01:31:33]} {[%emt 00:00:10]} Bb4 {[%clk
01:31:15]} {[%emt 00:00:27]} 4. e3 {[%clk 01:31:50]} {[%emt 00:00:14]} Bxc3+
{[%clk 01:30:03]} {[%emt 00:01:43]} 5. bxc3 {[%clk 01:32:05]} {[%emt 00:00:15]}
c5 {[%clk 01:29:47]} {[%emt 00:00:45]} 6. g3 {[%clk 01:31:19]} {[%emt
00:01:17]} O-O {[%clk 01:26:26]} {[%emt 00:03:50]} 7. Bg2 {[%clk 01:31:36]}
{[%emt 00:00:13]} Qc7 {[%clk 01:24:45]} {[%emt 00:02:10]} 8. Qd3 {[%clk
01:29:36]} {[%emt 00:02:32]} Rd8 {[%clk 01:17:42]} {[%emt 00:07:33]} 9. Nf3
{[%clk 01:29:10]} {[%emt 00:00:56]} d5 {[%clk 01:17:04]} {[%emt 00:01:08]} 10.
cxd5 {[%clk 01:29:13]} {[%emt 00:00:27]} c4 {[%clk 01:15:25]} {[%emt 00:02:09]}
11. Qc2 {[%clk 01:29:30]} {[%emt 00:00:13]} exd5 {[%clk 01:15:18]} {[%emt
00:00:37]} 12. O-O {[%clk 01:28:48]} {[%emt 00:01:12]} Nc6 {[%clk 01:11:04]}
{[%emt 00:04:44]} 13. Nd2 {[%clk 01:28:50]} {[%emt 00:00:28]} Be6 {[%clk
01:06:37]} {[%emt 00:04:57]} 14. f3 {[%clk 01:27:43]} {[%emt 00:01:37]} b5
{[%clk 01:02:13]} {[%emt 00:04:54]} 15. e4 {[%clk 01:27:47]} {[%emt 00:00:26]}
b4 {[%clk 00:59:46]} {[%emt 00:02:57]} 16. Rd1 {[%clk 01:26:36]} {[%emt
00:01:42]} a5 {[%clk 00:51:01]} {[%emt 00:09:15]} 17. Nf1 {[%clk 01:25:53]}
{[%emt 00:01:12]} a4 {[%clk 00:48:05]} {[%emt 00:03:26]} 18. cxb4 {[%clk
01:25:12]} {[%emt 00:01:11]} Nxb4 {[%clk 00:47:33]} {[%emt 00:01:00]} 19. Qc3
{[%clk 01:25:12]} {[%emt 00:00:31]} Qb7 {[%clk 00:38:43]} {[%emt 00:09:20]} 20.
Bg5 {[%clk 01:21:31]} {[%emt 00:04:11]} Rdb8 {[%clk 00:32:18]} {[%emt
00:06:55]} 21. Bf4 {[%clk 01:20:59]} {[%emt 00:01:03]} Rc8 {[%clk 00:25:41]}
{[%emt 00:07:07]} 22. Rdb1 {[%clk 01:18:42]} {[%emt 00:02:47]} Nxa2 {[%clk
00:25:34]} {[%emt 00:00:37]} 23. Qd2 {[%clk 01:18:50]} {[%emt 00:00:21]} Qa7
{[%clk 00:23:53]} {[%emt 00:02:12]} 24. Rxa2 {[%clk 01:07:06]} {[%emt
00:12:14]} c3 {[%clk 00:23:48]} {[%emt 00:00:34]} 25. Qf2 {[%clk 01:06:40]}
{[%emt 00:00:56]} dxe4 {[%clk 00:23:57]} {[%emt 00:00:21]} 26. Raa1 {[%clk
01:06:34]} {[%emt 00:00:37]} c2 {[%clk 00:21:19]} {[%emt 00:03:08]} 27. Rc1
{[%clk 01:06:49]} {[%emt 00:00:15]} exf3 {[%clk 00:18:28]} {[%emt 00:03:21]} 28.
Bxf3 {[%clk 01:06:51]} {[%emt 00:00:27]} Bd5 {[%clk 00:18:10]} {[%emt
00:00:48]} 29. Bxd5 {[%clk 01:04:09]} {[%emt 00:03:12]} Nxd5 {[%clk 00:18:35]}
{[%emt 00:00:05]} 30. Bd6 {[%clk 01:04:12]} {[%emt 00:00:27]} Nc3 {[%clk
00:14:32]} {[%emt 00:04:33]} 31. Bc5 {[%clk 01:02:16]} {[%emt 00:02:26]} Qa5
{[%clk 00:13:45]} {[%emt 00:01:17]} 32. Qxc2 {[%clk 00:59:49]} {[%emt
00:02:56]} Nd5 {[%clk 00:10:59]} {[%emt 00:03:17]} 33. Qg2 {[%clk 00:57:50]}
{[%emt 00:02:29]} Rd8 {[%clk 00:09:49]} {[%emt 00:01:39]} 34. Qf3 {[%clk
00:58:09]} {[%emt 00:00:12]} Ra6 {[%clk 00:09:49]} {[%emt 00:00:29]} 35. Re1
{[%clk 00:56:48]} {[%emt 00:01:52]} Raa8 {[%clk 00:09:25]} {[%emt 00:00:53]} 36.
Ne3 {[%clk 00:56:52]} {[%emt 00:00:26]} Nxe3 {[%clk 00:09:30]} {[%emt
00:00:24]} 37. Rxe3 {[%clk 00:56:56]} {[%emt 00:00:26]} Rd7 {[%clk 00:09:25]}
{[%emt 00:00:35]} 38. Rea3 {[%clk 00:57:11]} {[%emt 00:00:15]} Qd8 {[%clk
00:09:16]} {[%emt 00:00:38]} 39. Rxa4 {[%clk 00:57:15]} {[%emt 00:00:28]} Rb8
{[%clk 00:08:43]} {[%emt 00:01:02]} 40. Ra8 {[%clk 00:57:30]} {[%emt 00:00:15]}
Rdb7 {[%clk 00:08:49]} {[%emt 00:00:24]} 41. Qxb7 {[%emt 00:00:09]} Rxa8 {[%emt
00:00:48]} 1-0